Cogmind - Beta 13 @@@ ROGUE MODE // 2024.04.08 @ 02:57:05 Player: BVrutally Odd Result: Destroyed by G-67 Veteran with Plasma Rifle Performance ------------- Evolutions (5) 2500 Regions Visited (15) 3000 Robots Destroyed (129) 645 Value Destroyed (4547) 4547 Prototype IDs (42) 840 Alien Tech Used (0) 0 Bonus (860) 860 TOTAL SCORE: 12392 Bonus ------- High Alert Combat Kills 119 Follower Combat Kills 141 Aligned with FarCom 300 Met Data Miner 300 Cogmind --------- Core Integrity 0/1000 Matter 191/300 Energy 65/100 System Corruption 4% Temperature Cool (0) Movement Core (50) Location -5/Extension Parts ------- > --- POWER (1) -------- (None) > --- PROPULSION (5) --- (None) > --- UTILITY (7) ------ Structural Scanner Core Analyzer Hacking Suite Improved Hacking Suite System Shield > --- WEAPON (4) ------- (None) > --- INVENTORY (5) ---- Improved Melee Analysis Suite Advanced Melee Analysis Suite Hacking Suite System Shield Improved System Shield Peak State ------------ > --- POWER ------------ Fusion Reactor > --- PROPULSION ------- Nuclear Pulse Thruster Flying Fortress v7 > --- UTILITY ---------- High-capacity Storage Unit 0b10 Decoder Chip [Skirmisher] Core Analyzer Hacking Suite Hacking Suite System Shield System Shield > --- WEAPON ----------- Backup Laser III Phasing Sabre > --- INVENTORY -------- Improved Deuterium Engine Flexi-carbon Leg Flexi-carbon Leg Q-thruster Improved Heat Sink Medium Storage Unit Advanced Beam Rifle Plasma Rifle Thermic Laser Gauss Rifle Hypervelocity Gauss Rifle Heavy Missile Launcher [Rating: 80] Favorites ----------- Power Light Ion Engine Engine Light Ion Engine Power Core Light Fission Core Reactor Fusion Reactor Propulsion Light Treads Treads Light Treads Leg Improved Titanium Leg Wheel Armored Huge Wheel Hover Unit Antigrav System Flight Unit Flying Fortress v7 Utility System Shield Device Improved Heat Sink Storage High-capacity Storage Unit Processor Advanced Targeting Computer Hackware System Shield Protection Hardened Medium Armor Plating Weapon Advanced Beam Rifle Energy Gun Advanced Beam Rifle Energy Cannon Cooled Plasma Cannon Ballistic Gun Precision Assault Rifle Ballistic Cannon Antimatter Cannon Launcher Grenade Launcher Impact Weapon Powered Hammer Slashing Weapon Phasing Sabre Build | -11 -10 -10 -10 -9 -8 -7 -6 -6 -6 -6 -5 -5 -5 -5 -5 ------- Run | Yrd Mat Min Exi Min Mat Fac Fac Low Low Dat Pro Fac Was Fac Ext Slots Evolved 10 | . . . . . 4 2 2 . . . . 2 . . . Power . | . . . . . . . . . . . . . . . . Propulsion 3 | . . . . . 1 1 . . . . . 1 . . . Utility 5 | . . . . . 1 1 2 . . . . 1 . . . Weapon 2 | . . . . . 2 . . . . . . . . . . Parts Attached 136 | 6 4 1 1 4 10 24 45 4 1 . 1 5 . 16 14 Power 14 | 1 . . . . . 2 5 1 . . . 1 . 3 1 Engine 8 | 1 . . . . . 1 2 1 . . . 1 . 1 1 Core 4 | . . . . . . 1 3 . . . . . . . . Reactor 2 | . . . . . . . . . . . . . . 2 . Propulsion 29 | 2 . . . . 1 8 11 . . . . 1 . 6 . Treads 5 | 2 . . . . 1 2 . . . . . . . . . Leg 14 | . . . . . . 5 9 . . . . . . . . Wheel 2 | . . . . . . 1 1 . . . . . . . . Hover 6 | . . . . . . . . . . . . . . 6 . Flight 2 | . . . . . . . 1 . . . . 1 . . . Utility 37 | 1 2 1 1 . 2 5 10 1 1 . 1 3 . 5 4 Device 11 | . 1 . . . . 1 3 . . . . . . 4 2 Storage 5 | 1 . 1 1 . . 1 . . . . . . . 1 . Processor 5 | . . . . . . 1 1 1 1 . 1 . . . . Hackware 7 | . . . . . . . 3 . . . . 3 . . 1 Protection 9 | . 1 . . . 2 2 3 . . . . . . . 1 Artifact . | . . . . . . . . . . . . . . . . Weapon 56 | 2 2 . . 4 7 9 19 2 . . . . . 2 9 Energy Gun 25 | 2 1 . . 2 3 7 6 . . . . . . . 4 Energy Cannon 3 | . . . . . 1 . . . . . . . . . 2 Ballistic Gun 13 | . 1 . . . 2 2 8 . . . . . . . . Ballistic Cannon 3 | . . . . . . . 3 . . . . . . . . Launcher 7 | . . . . 2 1 . 1 . . . . . . 1 2 Special Weapon . | . . . . . . . . . . . . . . . . Impact Weapon 4 | . . . . . . . 1 2 . . . . . . 1 Slashing Weapon 1 | . . . . . . . . . . . . . . 1 . Piercing Weapon . | . . . . . . . . . . . . . . . . Special Melee Weapon . | . . . . . . . . . . . . . . . . Unidentified Prototypes 7 | . . . . . 1 3 1 . . . . . . 1 1 Parts Lost 46 | . . . . . . 1 29 1 . . . . . 2 13 Power 6 | . . . . . . 1 4 . . . . . . 1 . Propulsion 13 | . . . . . . . 7 . . . . . . 1 5 Utility 10 | . . . . . . . 6 1 . . . . . . 3 Weapon 17 | . . . . . . . 12 . . . . . . . 5 Highest Loss Streak 11 | . . . . . . 1 11 1 . . . . . 2 11 To Critical Strikes . | . . . . . . . . . . . . . . . . Average Slot Usage (%) 87 | . 99 100 100 100 96 95 92 43 43 46 49 64 70 69 72 Engine 4 | . 14 14 14 14 9 4 . . . . . 5 5 1 . Core 2 | . . . . . . 2 5 . . . . . . . . Treads 9 | . 28 28 28 28 25 11 . . . . . . . . . Leg 8 | . . . . . . 12 18 . . . . . . . . Wheel 1 | . . . . . . 1 2 . . . . . . . . Flight 1 | . . . . . . . . 6 6 6 6 11 11 5 . Device 7 | . 6 14 14 14 9 7 8 . . . . . . 4 3 Storage 7 | . 14 14 14 14 9 7 6 6 6 6 6 5 5 5 4 Processor 4 | . . . . . . 7 3 13 17 20 23 13 11 6 5 Hackware 6 | . . . . . . . 10 8 6 6 6 20 23 23 19 Protection 4 | . 7 . . . 8 7 5 . . . . . . . . Energy Gun 17 | . 25 28 28 26 25 22 17 . . . . . 5 5 8 Ballistic Gun 4 | . 2 . . . 7 7 7 1 . . . . . . . Naked Turns . | . . . . . . . . . . . . . . . . Heaviest Build 86 | 11 14 19 29 29 43 68 86 50 43 43 43 53 47 48 50 Greatest Support 80 | 40 40 40 40 40 60 80 80 50 50 50 50 56 56 64 61 Greatest Overweight (x) 3 | . . . . . . 3 3 . . . . . . 1 1 Average Overweight (x) . | . . . . . . . 1 . . . . . . . . Largest Inventory Capacity 20 | 8 8 10 15 15 15 20 20 20 20 20 20 20 20 20 15 Average Capacity 16 | 7 8 9 12 15 15 18 20 20 20 20 20 20 20 15 13 Most Carried 20 | 5 7 8 10 13 15 20 20 13 13 13 15 14 12 15 15 Average Carried 14 | 2 6 7 9 11 14 17 15 11 12 13 14 10 11 13 12 Final Capacity 20 | 8 8 10 15 15 15 20 20 20 20 20 20 20 20 15 5 Final Carried 20 | 5 7 8 10 13 15 20 11 12 13 13 15 11 12 14 5 Class Distribution -------------------- 28% | Scavenger-Skirmisher 26% | Mutant 16% | Hacker-Skirmisher 14% | Skirmisher 14% | Hacker-Mutant Dominant Class ---------------- Mutant | -10/Materials Mutant | -10/Mines Mutant | -10/Exiles Mutant | -9/Mines Scavenger-Skirmisher | -8/Materials Skirmisher | -7/Factory Hacker-Skirmisher | -6/Factory Mutant | -6/Lower Caves Mutant | -6/Lower Caves Mutant | -6/Data Miner Mutant | -5/Proximity Caves Hacker-Mutant | -5/Factory Hacker-Mutant | -5/Waste Hacker-Mutant | -5/Factory Hacker-Mutant | -5/Extension Resources | -11 -10 -10 -10 -9 -8 -7 -6 -6 -6 -6 -5 -5 -5 -5 -5 ----------- Run | Yrd Mat Min Exi Min Mat Fac Fac Low Low Dat Pro Fac Was Fac Ext Matter Collected 2427 | 260 50 11 . 140 83 504 885 126 . . 74 . . 248 46 Remotely . | . . . . . . . . . . . . . . . . Salvage Created 4791 | 110 185 . . 159 206 711 1966 73 66 . 3 . . 820 492 Parts 268 | 3 15 . . 12 27 35 117 1 1 . . . . 51 6 Haulers Intercepted 2 | . . . . . . . . . . . . . . 2 . Recyclers Shooed 3 | . . . . . . . 2 . . . . . . 1 . Parts Field Recycled . | . . . . . . . . . . . . . . . . Retrieved Matter . | . . . . . . . . . . . . . . . . Parts Self-Destructed 14 | . . . . . . . . 4 1 . 9 . . . . Prevented 1 | . . . . . . . . 1 . . . . . . . Kills | -11 -10 -10 -10 -9 -8 -7 -6 -6 -6 -6 -5 -5 -5 -5 -5 ------- Run | Yrd Mat Min Exi Min Mat Fac Fac Low Low Dat Pro Fac Was Fac Ext Combat Hostiles Destroyed 83 | . 4 . . 6 6 13 36 2 3 . 1 . . 11 1 Melee 12 | . . . . . . . . 2 3 . 1 . . 6 . Guns 44 | . 4 . . . 2 12 26 . . . . . . . . Cannons 2 | . . . . . . . 2 . . . . . . . . AOE 19 | . . . . 6 3 . 5 . . . . . . 5 . Classes Destroyed 18 | 2 2 . . . 3 4 5 . . . 1 . . 1 . Worker 3 | . . . . . . . 2 . . . . . . 1 . Builder 13 | . . . . . . . 6 . . . . . . 6 1 Tunneler 2 | 1 . . . . 1 . . . . . . . . . . Hauler 2 | . . . . . . . . . . . . . . 2 . Recycler 10 | 1 . . . . 1 2 3 . . . . . . . 3 Mechanic 1 | . . . . . . . 1 . . . . . . . . Operator 5 | . . . . . . 1 1 . . . . . . 2 1 Drone 1 | . . . . . . . . . . . 1 . . . . Watcher 10 | . 2 . . . 2 1 3 . . . . . . 1 1 Swarmer 22 | . . . . . 4 3 5 2 3 . . . . 5 . Grunt 19 | . 4 . . 6 . . 6 . . . . . . 3 . Protector 2 | . . . . . . . 2 . . . . . . . . Sentry 4 | . . . . . 1 1 1 . . . . . . . 1 Specialist 6 | . . . . . . 2 4 . . . . . . . . Hunter 12 | . . . . . 1 1 10 . . . . . . . . Programmer 15 | . . . . . . 5 7 . . . . . . 3 . Heavy 1 | . . . . . . 1 . . . . . . . . . Behemoth 1 | . . . . . . . 1 . . . . . . . . Best Kill Streak 16 | 2 2 . . 3 7 3 16 2 2 . 1 . . 7 3 Combat Bots Only 10 | . 2 . . 3 4 3 10 2 2 . 1 . . 5 1 Max Kills in Single Turn 6 | 2 1 . . 2 3 1 6 1 1 . 1 . . 4 1 Gunslinging 1 | . . . . . . . 1 . . . . . . . . Exploded 4 | . . . . 2 3 . 4 . . . . . . 3 . Melee 1 | . . . . . . . . 1 1 . 1 . . 1 . Uniques/NPCs Destroyed . | . . . . . . . . . . . . . . . . Combat | -11 -10 -10 -10 -9 -8 -7 -6 -6 -6 -6 -5 -5 -5 -5 -5 -------- Run | Yrd Mat Min Exi Min Mat Fac Fac Low Low Dat Pro Fac Was Fac Ext Hostile Shots Fired 724 | . 22 . . 9 24 47 399 41 15 . 2 . . 40 125 Missed 245 | . 6 . . 3 8 23 130 13 2 . . . . 18 42 Damage Taken 9335 | . 197 . . 90 186 533 5063 456 193 . 46 . . 489 2082 Core 1870 | . 38 . . 17 15 29 626 117 14 . . . . 148 866 Absorbed by Shields 9 | . . . . . . 4 . . . . . . . 5 . Redirected to Shielding 18 | . 18 . . . . . . . . . . . . . . Regen/Repaired (Parts) 44 | . . . . . . . 44 . . . . . . . . Core Remaining (%) 76 | 100 . . . 78 97 95 . . . . 10 . . . . Volleys Fired 183 | 3 19 1 . 9 15 32 93 . . . . 1 . 3 7 Largest 4 | 2 2 2 . 1 4 4 4 . . . . 1 . 1 3 Hottest 301 | 90 115 115 . 30 220 249 301 . . . . 40 . 39 200 Shots Fired 585 | 6 38 2 . 9 54 128 333 . . . . 1 . 3 11 Gun 542 | 6 38 2 . . 52 128 309 . . . . 1 . . 6 Cannon 24 | . . . . . . . 21 . . . . . . . 3 Launcher 19 | . . . . 9 2 . 3 . . . . . . 3 2 Special . | . . . . . . . . . . . . . . . . Kinetic 176 | . 11 . . . 11 34 120 . . . . . . . . Thermal 390 | 6 27 2 . . 41 94 210 . . . . 1 . . 9 Explosive 19 | . . . . 9 2 . 3 . . . . . . 3 2 Electromagnetic . | . . . . . . . . . . . . . . . . Robot Hit Streak 15 | 2 4 . . 5 9 14 15 . . . . . . 2 8 Robot Miss Streak 4 | 2 2 . . 1 4 4 4 . . . . . . 1 1 Penetration Max 1 | . . . . . . . 1 . . . . . . . . Secondary Targets 5 | . . . . . . . 5 . . . . . . . . Max Gunslinging Chain 2 | . . . . . . . 2 . . . . . . . . Shots Hit Robots 423 | 3 25 . . 6 30 77 225 8 4 . 1 . . 32 12 Core Hits 255 | 3 12 . . 12 15 37 131 2 . . . . . 26 17 Critical Kills . | . . . . . . . . . . . . . . . . Critical Parts Destroyed 6 | . . . . . . . 2 1 1 . 1 . . . 1 Critical Strikes 19 | . 2 . . . . 1 11 1 1 . 1 . . 1 1 Burn 11 | . 2 . . . . 1 8 . . . . . . . . Destroy 2 | . . . . . . . 2 . . . . . . . . Blast 1 | . . . . . . . 1 . . . . . . . . Smash 4 | . . . . . . . . 1 1 . 1 . . . 1 Sever 1 | . . . . . . . . . . . . . . 1 . Melee Attacks 83 | . . . . . . . 1 16 10 . 2 . . 50 4 Impact 32 | . . . . . . . 1 16 10 . 2 . . . 3 Slashing 51 | . . . . . . . . . . . . . . 50 1 Piercing . | . . . . . . . . . . . . . . . . Sneak Attacks 12 | . . . . . . . . . 1 . 1 . . 8 2 Combat Hostiles 2 | . . . . . . . . . 1 . 1 . . . . Follow-up Attacks . | . . . . . . . . . . . . . . . . Damage Inflicted 14243 | 48 301 . . 509 668 1637 7049 461 276 . 86 . . 2201 1007 Guns 7138 | 48 301 . . . 443 1637 4603 . . . . . . . 106 Cannons 712 | . . . . . . . 584 . . . . . . . 128 Explosions 3551 | . . . . 509 214 . 1862 . . . . . . 552 414 Melee 2831 | . . . . . . . . 461 276 . 86 . . 1649 359 Ramming 11 | . . . . . 11 . . . . . . . . . . Kinetic 1907 | . 47 . . . 36 258 1566 . . . . . . . . Thermal 6144 | 48 254 . . . 407 1379 3822 . . . . . . . 234 Explosive 3350 | . . . . 509 214 . 1661 . . . . . . 552 414 Electromagnetic . | . . . . . . . . . . . . . . . . Impact 1182 | . . . . . . . . 461 276 . 86 . . . 359 Slashing 1649 | . . . . . . . . . . . . . . 1649 . Piercing . | . . . . . . . . . . . . . . . . Highest Corruption 7 | . . . . . . . 7 7 7 7 7 . . 4 4 Average Corruption 4 | . . . . . . . 3 7 7 7 7 . . 3 4 Corruption Purged . | . . . . . . . . . . . . . . . . Corruption Blocked . | . . . . . . . . . . . . . . . . Effects 63 | . . . . . . . 28 11 4 2 9 . . 6 3 Message Errors 15 | . . . . . . . 7 3 1 . . . . 3 1 Matter Fused 18 | . . . . . . . 8 2 1 . 6 . . 1 . Heat Flow Errors 5 | . . . . . . . 3 1 . . . . . 1 . Energy Discharges 7 | . . . . . . . 2 2 . 1 1 . . . 1 Parts Rejected 1 | . . . . . . . . 1 . . . . . . . Parts Fused 2 | . . . . . . . 1 . . . 1 . . . . Data Loss (minor) 9 | . . . . . . . 3 1 2 1 1 . . . 1 Data Loss (major) 2 | . . . . . . . . 1 . . . . . 1 . Alerts 2 | . . . . . . . 2 . . . . . . . . Weapon Failures 2 | . . . . . . . 2 . . . . . . . . Overload Shots 3 | . . . . . . . . . . . . . . . 3 Overflow Damage 1167 | . . . . 9 . . 120 197 161 . 86 . . 211 383 Projectiles 115 | . . . . . . . 47 . . . . . . . 68 Explosions 147 | . . . . 9 . . 73 . . . . . . 65 . Melee 905 | . . . . . . . . 197 161 . 86 . . 146 315 Knockbacks 6 | . . . . . . . 4 . . . . . . . 2 Impact 2 | . . . . . . . . . . . . . . . 2 Kinetic 4 | . . . . . . . 4 . . . . . . . . Secondary . | . . . . . . . . . . . . . . . . Self-Inflicted Damage 105 | . . . . . . . 43 . . . . . . 62 . Shots 2 | . . . . . . . 1 . . . . . . 1 . Rammed 1 | . . . . . 1 . . . . . . . . . . Targets Rammed 1 | . . . . . 1 . . . . . . . . . . Kicked . | . . . . . . . . . . . . . . . . Crushed . | . . . . . . . . . . . . . . . . Highest Temperature 517 | 90 366 12 . 8 385 380 517 234 . . . . . 146 311 Average Temperature 105 | 48 108 8 . 8 127 122 106 122 . . . . . 49 137 Received Heat Transfer 1233 | . 114 . . 69 . 6 660 45 . . 9 . . 96 234 Effects 5 | . 1 . . . 2 1 1 . . . . . . . . Shutdowns 1 | . . . . . 1 . . . . . . . . . . Energy Bleed 1 | . 1 . . . . . . . . . . . . . . Matter Decay 1 | . . . . . 1 . . . . . . . . . . Damage (minor) 1 | . . . . . . 1 . . . . . . . . . Damage (core) 1 | . . . . . . . 1 . . . . . . . . Siege Activations . | . . . . . . . . . . . . . . . . Robots Corrupted . | . . . . . . . . . . . . . . . . Combat Hostiles . | . . . . . . . . . . . . . . . . Parts Fried 8 | . . . . . . . . 1 2 . 2 . . . 3 Impact Corruptions 19 | . . . . . . . . 3 5 . 1 . . . 10 Robots Melted 6 | . . . . . 1 1 3 . . . . . . . 1 Combat Hostiles 6 | . . . . . 1 1 3 . . . . . . . 1 Parts Melted 32 | . 2 . . . 1 13 14 . . . . . . . 2 Heat Transferred 13003 | 124 851 . . . 987 2831 7776 . . . . . . . 434 Parts Sabotaged . | . . . . . . . . . . . . . . . . Parts Stolen . | . . . . . . . . . . . . . . . . Parts Stripped . | . . . . . . . . . . . . . . . . Power Chain Reactions . | . . . . . . . . . . . . . . . . Alert | -11 -10 -10 -10 -9 -8 -7 -6 -6 -6 -6 -5 -5 -5 -5 -5 ------- Run | Yrd Mat Min Exi Min Mat Fac Fac Low Low Dat Pro Fac Was Fac Ext Peak Influence 670 | 10 171 66 . 220 175 162 670 . . . . 162 71 318 140 Initial 150 | . 6 66 . . 7 79 71 . . . . 150 56 49 120 Average 131 | 1 109 51 . 161 40 47 247 . . . . 151 66 132 40 Maximum Alert Level 2 | . . . . 1 . . 2 . . . . . . 1 . Low Security (%) 76 | 100 100 100 . 53 100 100 40 . . . . 100 100 90 100 Level 1 17 | . . . . 46 . . 41 . . . . . . 9 . Level 2 6 | . . . . . . . 17 . . . . . . . . Level 3 . | . . . . . . . . . . . . . . . . Level 4 . | . . . . . . . . . . . . . . . . Level 5 . | . . . . . . . . . . . . . . . . High Security . | . . . . . . . . . . . . . . . . Max Security . | . . . . . . . . . . . . . . . . Squads Dispatched 34 | . 1 . . . . 8 16 . . . . . . 8 1 Investigation 10 | . 1 . . . . 1 5 . . . . . . 3 . Extermination 12 | . . . . . . 4 6 . . . . . . 2 . Reinforcement 11 | . . . . . . 3 4 . . . . . . 3 1 Assault 1 | . . . . . . . 1 . . . . . . . . Garrison . | . . . . . . . . . . . . . . . . Intercept . | . . . . . . . . . . . . . . . . Searches Triggered . | . . . . . . . . . . . . . . . . Construction Impeded 1 | . . . . . . . 1 . . . . . . . . Haulers Reinforced . | . . . . . . . . . . . . . . . . Active Scanning Responses . | . . . . . . . . . . . . . . . . Cargo Convoy Interrupts 2 | . . . . . . 1 1 . . . . . . . . Stealth | -11 -10 -10 -10 -9 -8 -7 -6 -6 -6 -6 -5 -5 -5 -5 -5 --------- Run | Yrd Mat Min Exi Min Mat Fac Fac Low Low Dat Pro Fac Was Fac Ext Distress Signals 7 | . 1 . . . 1 2 1 . . . . . . 2 . Communications Jammed . | . . . . . . . . . . . . . . . . Distress Signals . | . . . . . . . . . . . . . . . . Times Spotted 163 | . 8 . . 6 9 16 59 12 2 . 4 . 6 28 13 Peak Tracking Total 12 | . 3 . . 3 6 3 12 7 2 . 1 . 6 7 9 Tactical Retreats 11 | . . . . . 1 . 5 2 . . . . . 3 . Traps | -11 -10 -10 -10 -9 -8 -7 -6 -6 -6 -6 -5 -5 -5 -5 -5 ------- Run | Yrd Mat Min Exi Min Mat Fac Fac Low Low Dat Pro Fac Was Fac Ext Traps Triggered 14 | . 1 . . . . 5 4 . . . . 1 . 1 2 Indirectly . | . . . . . . . . . . . . . . . . Trap Hack Attempts . | . . . . . . . . . . . . . . . . Triggered . | . . . . . . . . . . . . . . . . Disarmed . | . . . . . . . . . . . . . . . . Reprogrammed 6 | . . . . . . . . . . . . . . 6 . Reused 1 | . . . . . . . . . . . . . . 1 . Traps Extracted . | . . . . . . . . . . . . . . . . Installed . | . . . . . . . . . . . . . . . . Triggered 7 | . . . . . . 2 . . 3 . 1 . . 1 . Machines | -11 -10 -10 -10 -9 -8 -7 -6 -6 -6 -6 -5 -5 -5 -5 -5 ---------- Run | Yrd Mat Min Exi Min Mat Fac Fac Low Low Dat Pro Fac Was Fac Ext Machines Disabled 11 | . . . . 2 . 2 4 . . . . . . 2 1 Max in Single Turn 4 | . . . . 2 . 1 4 . . . . . . 1 1 Machines Repaired . | . . . . . . . . . . . . . . . . Machines Dismantled . | . . . . . . . . . . . . . . . . Machines Sabotaged . | . . . . . . . . . . . . . . . . Overloaded Fab Kills . | . . . . . . . . . . . . . . . . Hacking | -11 -10 -10 -10 -9 -8 -7 -6 -6 -6 -6 -5 -5 -5 -5 -5 --------- Run | Yrd Mat Min Exi Min Mat Fac Fac Low Low Dat Pro Fac Was Fac Ext Machines Accessed 41 | . 2 . 2 . 2 9 7 1 1 4 . 1 . 10 2 Terminals 23 | . 2 . . . 2 4 4 1 1 . . . . 7 2 Fabricators 4 | . . . . . . 2 . . . . . . . 2 . Repair Stations 2 | . . . . . . . 1 . . . . 1 . . . Recycling Units 3 | . . . . . . 2 1 . . . . . . . . Scanalyzers 1 | . . . . . . 1 . . . . . . . . . Garrison Access 2 | . . . . . . . 1 . . . . . . 1 . Total Hacks 145 | . 3 . 3 . 5 21 27 1 1 27 . 3 . 40 14 Successful 79 | . 2 . 3 . 2 10 5 1 1 27 . 2 . 19 7 Failed 66 | . 1 . . . 3 11 22 . . . . 1 . 21 7 Catastrophic 17 | . . . . . 1 2 5 . . . . 1 . 7 1 Database Lockouts . | . . . . . . . . . . . . . . . . Manual 49 | . 2 . 1 . 1 4 7 . 1 . . . . 26 7 Terminals 85 | . 3 . . . 5 9 20 1 1 . . . . 32 14 Fabricators 11 | . . . . . . 5 . . . . . . . 6 . Repair Stations 6 | . . . . . . . 3 . . . . 3 . . . Recycling Units 7 | . . . . . . 5 2 . . . . . . . . Scanalyzers 2 | . . . . . . 2 . . . . . . . . . Garrison Access 4 | . . . . . . . 2 . . . . . . 2 . Terminal Hacks 62 | . 2 . 3 . 2 3 2 1 1 27 . . . 14 7 Record 16 | . . . 2 . . . . 1 1 11 . . . . 1 Part Schematic 13 | . . . . . . . . . . 9 . . . 3 1 Robot Schematic 4 | . . . . . . . . . . 4 . . . . . Prototype ID Bank 3 | . . . . . . . . . . 3 . . . . . Level Access Points 2 | . 1 . . . . . . . . . . . . 1 . Branch Access Points 4 | . 1 . . . . 1 . . . . . . . 1 1 Emergency Access Points 1 | . . . . . . 1 . . . . . . . . . Fabricator Index 1 | . . . . . . . . . . . . . . 1 . Alert Level 2 | . . . . . . 1 . . . . . . . 1 . Unreport Threat 6 | . . . . . . . 2 . . . . . . 2 2 Locate Traps 1 | . . . . . 1 . . . . . . . . . . Reprogram Traps 1 | . . . . . . . . . . . . . . 1 . Recall Investigation 1 | . . . . . . . . . . . . . . 1 . Recall Reinforcements 3 | . . . . . . . . . . . . . . 2 1 Hauler Manifests 2 | . . . . . 1 . . . . . . . . 1 . Registered Components 1 | . . . . . . . . . . . . . . . 1 Derelict Proto ID Bank 1 | . . . 1 . . . . . . . . . . . . Fabricator Hacks 5 | . . . . . . 2 . . . . . . . 3 . Load Schematic 3 | . . . . . . 1 . . . . . . . 2 . Build 2 | . . . . . . 1 . . . . . . . 1 . Repair Station Hacks 4 | . . . . . . . 2 . . . . 2 . . . Scan Component 1 | . . . . . . . 1 . . . . . . . . Repair 1 | . . . . . . . 1 . . . . . . . . Refit 2 | . . . . . . . . . . . . 2 . . . Recycling Unit Hacks 4 | . . . . . . 3 1 . . . . . . . . Retrieve Matter 2 | . . . . . . 2 . . . . . . . . . Retrieve Components 2 | . . . . . . 1 1 . . . . . . . . Scanalyzer 2 | . . . . . . 2 . . . . . . . . . Insert Component 1 | . . . . . . 1 . . . . . . . . . Analyze 1 | . . . . . . 1 . . . . . . . . . Garrison Access Hacks . | . . . . . . . . . . . . . . . . Unauthorized Hacks 2 | . . . . . . . . . . . . . . 2 . Terminals 2 | . . . . . . . . . . . . . . 2 . Assimilate 1 | . . . . . . . . . . . . . . 1 . Botnet 1 | . . . . . . . . . . . . . . 1 . Fabricators . | . . . . . . . . . . . . . . . . Repair Stations . | . . . . . . . . . . . . . . . . Recycling Units . | . . . . . . . . . . . . . . . . Scanalyzers . | . . . . . . . . . . . . . . . . Garrison Access . | . . . . . . . . . . . . . . . . Data Cores Recovered 1 | . . . . . . . . . . . . . . 1 . Used 1 | . . . . . . . . . . . . . . 1 . Hacking Detections 29 | . 1 . . . 2 8 6 . . . . 1 . 9 2 Full Trace Events 8 | . . . . . . 1 4 . . . . . . 3 . Feedback Events . | . . . . . . . . . . . . . . . . Feedback Blocked . | . . . . . . . . . . . . . . . . Robot Schematics Acquired 4 | . . . . . . . . . . 4 . . . . . Robots Built . | . . . . . . . . . . . . . . . . Authchips . | . . . . . . . . . . . . . . . . Time . | . . . . . . . . . . . . . . . . Total Robot Build Rating . | . . . . . . . . . . . . . . . . Part Schematics Acquired 14 | . . . . . . 1 . . . 9 . . . 3 1 Parts Built 2 | . . . . . . 1 . . . . . . . 1 . Authchips . | . . . . . . . . . . . . . . . . Time 225 | . . . . . . 73 . . . . . . . 152 . Total Part Build Rating 8 | . . . . . . 3 . . . . . . . 5 . Parts Repaired 1 | . . . . . . . 1 . . . . . . . . Time 19 | . . . . . . . 19 . . . . . . . . Parts Recycled . | . . . . . . . . . . . . . . . . Recycled Matter . | . . . . . . . . . . . . . . . . Retrieved Matter . | . . . . . . . . . . . . . . . . Retrieved Components 3 | . . . . . . 2 1 . . . . . . . . Parts Scanalyzed 1 | . . . . . . 1 . . . . . . . . . Part Schematics Acquired 1 | . . . . . . 1 . . . . . . . . . Parts Damaged . | . . . . . . . . . . . . . . . . Bothacking | -11 -10 -10 -10 -9 -8 -7 -6 -6 -6 -6 -5 -5 -5 -5 -5 ------------ Run | Yrd Mat Min Exi Min Mat Fac Fac Low Low Dat Pro Fac Was Fac Ext Used RIF Installer . | . . . . . . . . . . . . . . . . Robots Hacked . | . . . . . . . . . . . . . . . . Non-combat . | . . . . . . . . . . . . . . . . Combat . | . . . . . . . . . . . . . . . . Robot Hacks Applied . | . . . . . . . . . . . . . . . . Relay Couplers Released . | . . . . . . . . . . . . . . . . Fabnet Peak Effective % . | . . . . . . . . . . . . . . . . Robots Rewired . | . . . . . . . . . . . . . . . . Allies Hacked . | . . . . . . . . . . . . . . . . Hacks Repelled . | . . . . . . . . . . . . . . . . Allies | -11 -10 -10 -10 -9 -8 -7 -6 -6 -6 -6 -5 -5 -5 -5 -5 -------- Run | Yrd Mat Min Exi Min Mat Fac Fac Low Low Dat Pro Fac Was Fac Ext Total Allies 1 | . . . . . . . . . . . 1 . . . . Largest Group 1 | . . . . . . . . . . . 1 . . . . Highest-Rated Group 96 | . . . . . . . . . . . 96 . . . . Highest-Rated Ally 96 | . . . . . . . . . . . 96 . . . . Total Orders . | . . . . . . . . . . . . . . . . Ally Attacks 30 | . . . . . . . . . . . 30 . . . . Total Damage 1010 | . . . . . . . . . . . 1010 . . . . Kills 4 | . . . . . . . . . . . 4 . . . . Allies Corrupted . | . . . . . . . . . . . . . . . . Allies Melted . | . . . . . . . . . . . . . . . . Intel | -11 -10 -10 -10 -9 -8 -7 -6 -6 -6 -6 -5 -5 -5 -5 -5 ------- Run | Yrd Mat Min Exi Min Mat Fac Fac Low Low Dat Pro Fac Was Fac Ext Robot Analysis Total . | . . . . . . . . . . . . . . . . Derelict Logs Recovered 5 | . . . . . . . . 2 1 . 2 . . . . Drone Launches . | . . . . . . . . . . . . . . . . Drone Recoveries . | . . . . . . . . . . . . . . . . Decoded 0b10 Intel 4 | . . . . . . . . . . . . . . 4 . Guards 4 | . . . . . . . . . . . . . . 4 . Exploration | -11 -10 -10 -10 -9 -8 -7 -6 -6 -6 -6 -5 -5 -5 -5 -5 ------------- Run | Yrd Mat Min Exi Min Mat Fac Fac Low Low Dat Pro Fac Was Fac Ext Turns Passed 11196 | 112 317 508 694 404 1027 2426 3225 314 170 42 408 59 65 1141 284 Spaces Moved 7371 | 62 137 314 432 216 365 1122 1525 476 270 84 603 103 133 1235 294 Core 70 | 8 . . . . . . . . . . . . . . 62 Treads 1788 | 54 137 314 432 216 365 270 . . . . . . . . . Legs 1332 | . . . . . . 579 753 . . . . . . . . Wheels 1028 | . . . . . . 273 755 . . . . . . . . Hover 451 | . . . . . . . . . . . . . . 219 232 Flight 2702 | . . . . . . . 17 476 270 84 603 103 133 1016 . Fastest Speed 42 | 50 160 160 160 160 160 115 50 50 50 50 50 42 42 42 50 Average Speed 101 | 145 160 160 160 160 160 138 127 50 50 50 50 42 42 47 64 Slowest Speed 400 | 160 160 160 160 160 160 400 200 50 50 50 50 42 42 121 150 Overloaded Moves . | . . . . . . . . . . . . . . . . Propulsion Burnouts . | . . . . . . . . . . . . . . . . Robots Hopped 7 | . . . . . . . . . . . . . . 7 . Cave-ins Triggered . | . . . . . . . . . . . . . . . . Exploration Rate (%) 49 | 4 42 85 88 39 33 27 33 64 45 71 81 5 73 35 60 Regions Visited 15 Branch Regions 8 Pre-discovered Areas 2 | . . . . . . . . . . 1 1 . . . . Known Exits Taken 4 | . 1 . . . . . . 1 1 . . . . 1 . Unknown Exits Taken 9 | 1 . 1 1 1 1 1 1 . . 1 1 . . . . Scrap Searched 11 | . . 1 . 2 . . . 3 2 . 3 . . . . Spaces Dug 18 | . . . . . . . 3 2 . . . . . 13 . Terrain Destroyed 217 | . . . . 52 46 . 61 2 . . . . . 36 20 Melee 16 | . . . . . . . 1 2 . . . . . 13 . Projectile 5 | . . . . . . . 5 . . . . . . . . AOE 196 | . . . . 52 46 . 55 . . . . . . 23 20 Terrain Rammed . | . . . . . . . . . . . . . . . . Walls Destroyed . | . . . . . . . . . . . . . . . . Machines Disabled . | . . . . . . . . . . . . . . . . Actions | -11 -10 -10 -10 -9 -8 -7 -6 -6 -6 -6 -5 -5 -5 -5 -5 --------- Run | Yrd Mat Min Exi Min Mat Fac Fac Low Low Dat Pro Fac Was Fac Ext Total 10483 | 75 198 318 436 264 773 1912 2566 523 286 83 704 120 141 1706 378 Wait 2553 | . 36 1 . 33 371 680 885 25 5 . 97 6 8 380 26 Move 7344 | 61 136 313 431 215 364 1121 1524 475 269 83 602 103 132 1221 294 Hop 6 | . . . . . . . . . . . . . . 6 . Pick Up 56 | 5 2 1 1 3 6 12 6 . 1 . 2 1 1 12 3 Fast Attach 62 | 6 2 . . . 5 17 18 2 1 . 1 . . 9 1 Attach 45 | . . . . . 2 3 18 2 . . . 5 . 3 12 Detach 12 | . . . . . . 1 3 3 . . . . . 1 4 Swap 29 | . 2 1 1 4 3 4 9 . . . . . . 4 1 Drop 71 | . 1 1 3 . 6 23 9 . . . . 4 . 14 10 Fire 183 | 3 19 1 . 9 15 32 93 . . . . 1 . 3 7 Melee 83 | . . . . . . . 1 16 10 . 2 . . 50 4 Ram . | . . . . . . . . . . . . . . . . Kick . | . . . . . . . . . . . . . . . . Crush 1 | . . . . . 1 . . . . . . . . . . Escape Stasis 38 | . . . . . . 19 . . . . . . . 3 16 Rewire . | . . . . . . . . . . . . . . . . Trap . | . . . . . . . . . . . . . . . . Miscellaneous . | . . . . . . . . . . . . . . . . Route ------- -11/Scrapyard -10/Materials (discovered 4 exits: Mat x3 / *Min) -10/Mines (discovered 2 exits: *Mat / *Exi) -10/Exiles -9/Mines -8/Materials -7/Factory (discovered 3 exits: *Fac / Low x2) -6/Factory -6/Lower Caves -6/Lower Caves -6/Data Miner -5/Proximity Caves -5/Factory -5/Waste -5/Factory (discovered 8 exits: *Fac x4 / *Upp x2 / *Ext x2) -5/Extension (discovered 2 exits: *Fac / *Cet) History --------- Turn | Location | Event 3 | -11/Scrapyard | Discovered new exit (range 15) 113 | -11/Scrapyard | Entered Materials 319 | -10/Materials | Build established: Mutant 374 | -10/Materials | Identified exit to Materials 374 | -10/Materials | Identified exit to Mines 430 | -10/Materials | Entered Mines 527 | -10/Mines | YI-UF0 nonchalantly dropped a Grenade Launcher on the ground 850 | -10/Mines | Discovered exit to Materials (range 7) 930 | -10/Mines | Deemed a non-threat by the Exiles lab entrance 931 | -10/Mines | Discovered new exit (range 5) 938 | -10/Mines | Entered Exiles 978 | -10/Exiles | Met 8R-AWN 1006 | -10/Exiles | Met EX-HEX 1050 | -10/Exiles | Met EX-BIN 1079 | -10/Exiles | Aligned with FarCom system 1081 | -10/Exiles | Given EX-Vault access code 1119 | -10/Exiles | Opened EX-Vault 1133 | -10/Exiles | Found Flying Fortress v7 1179 | -10/Exiles | Warned to stay clear of 0b10 Research branches 1224 | -10/Exiles | Met EX-DEC 1404 | -10/Exiles | Visited The Gauntlet 1614 | -10/Exiles | Discovered new exit (range 12) 1632 | -10/Exiles | Left Exiles lab with Flying Fortress v7 1632 | -10/Exiles | Entered Mines 1659 | -9/Mines | Met a Derelict bent on vengeance 1989 | -9/Mines | Discovered new exit (range 4) 2036 | -9/Mines | Entered Materials 2036 | -8/Materials | Evolved 4 slots: Propulsion x1, Utility x1, Weapon x2 2452 | -8/Materials | Build established: Scavenger-Skirmisher 3060 | -8/Materials | Discovered new exit (range 3) 3063 | -8/Materials | Entered Factory 3063 | -7/Factory | Evolved 2 slots: Propulsion x1, Utility x1 4471 | -7/Factory | Identified exit to Lower Caves 4535 | -7/Factory | Build established: Skirmisher 4784 | -7/Factory | Cargo convoy interrupted 5098 | -7/Factory | Fabricated Hacking Suite? 5465 | -7/Factory | Discovered new exit (range 7) 5489 | -7/Factory | Entered another Factory area 5489 | -6/Factory | Evolved 2 slots: Utility x2 5541 | -6/Factory | Repaired Lgt. Nuclear Core 5796 | -6/Factory | Build established: Hacker-Skirmisher 6658 | -6/Factory | Spotted B-75 Beast 6695 | -6/Factory | Destroyed B-75 Beast 6769 | -6/Factory | Cargo convoy interrupted 6817 | -6/Factory | Destroyed 10 combat bots 7370 | -6/Factory | Build established: Skirmisher 7756 | -6/Factory | Build established: Scavenger-Skirmisher 8326 | -6/Factory | Lost 3 parts (1u2w) 8560 | -6/Factory | Core integrity fell below 50% 8639 | -6/Factory | First assault squad dispatched 8663 | -6/Factory | Discovered new exit (range 5) 8714 | -6/Factory | Entered Lower Caves 8744 | -6/Lower Caves | Lost 11 parts (2p2n2u5w) 8830 | -6/Lower Caves | Core integrity fell below 20% 8886 | -6/Lower Caves | Encountered a Warlord checkpoint 8935 | -6/Lower Caves | Identified exit to Lower Caves 8943 | -6/Lower Caves | Learned Factory stockpile data 9028 | -6/Lower Caves | Entered another Lower Caves area 9110 | -6/Lower Caves | Build established: Mutant 9125 | -6/Lower Caves | Identified exit to Data Miner 9169 | -6/Lower Caves | Encountered a Warlord checkpoint 9198 | -6/Lower Caves | Entered Data Miner 9198 | -6/Data Miner | Discovered new exit (range 6) 9208 | -6/Data Miner | Met Data Miner 9218 | -6/Data Miner | Learned location of Section 7 (-2) 9218 | -6/Data Miner | Acquired the access code to Warlord's prototype stash 9227 | -6/Data Miner | Received God Mode back door access code from Data Miner 9240 | -6/Data Miner | Entered Proximity Caves 9243 | -5/Proximity Caves | Spotter reported a threat 9259 | -5/Proximity Caves | Escorted by Enhanced Grunt 9350 | -5/Proximity Caves | Attracted the attention of an 0b10 checkpoint 9427 | -5/Proximity Caves | Learned location of Warlord (-5) 9521 | -5/Proximity Caves | Spotted B-75 Beast 9548 | -5/Proximity Caves | Allies destroyed B-75 Beast 9642 | -5/Proximity Caves | Discovered new exit (range 10) 9648 | -5/Proximity Caves | Entered Factory 9648 | -5/Factory | Evolved 2 slots: Propulsion x1, Utility x1 9707 | -5/Factory | Sucked down chute 9707 | -5/Factory | Entered Waste 9720 | -5/Waste | Spotted C-40 Crusher 9723 | -5/Waste | Spotted C-40 Crusher 9724 | -5/Waste | Spotted C-40 Crusher 9725 | -5/Waste | Spotted C-40 Crusher 9726 | -5/Waste | Spotted C-40 Crusher 9726 | -5/Waste | Spotted C-40 Crusher 9767 | -5/Waste | Discovered new exit (range 13) 9772 | -5/Waste | Entered Factory 9809 | -5/Factory | Identified exit to Upper Caves 9809 | -5/Factory | Identified exit to Extension 9809 | -5/Factory | Identified exit to Factory 9908 | -5/Factory | Found Mni. Smartbomb Launcher 9959 | -5/Factory | Build established: Hacker-Mutant 10630 | -5/Factory | Fabricated Cld. Cesium-ion Thruster? 10913 | -5/Factory | Entered Extension 11044 | -5/Extension | Identified exit to Cetus 11091 | -5/Extension | Spotted B-75 Beast 11095 | -5/Extension | Spotted B-75 Beast 11118 | -5/Extension | Core integrity fell below 50% 11160 | -5/Extension | Core integrity fell below 20% 11188 | -5/Extension | Lost 11 parts (4n3u4w) 11192 | -5/Extension | Discovered exit to Factory (range 14) 11197 | -5/Extension | Destroyed by G-67 Veteran with Plasma Rifle Last Messages --------------- 11122_ Shock Maul destroyed. 11144_ Cmb. Gravmag System destroyed. 11146_ Slug penetrates Wall. 11148_ Penetrated by Slug. 11150_ Mni. Smartbomb Launcher destroyed. 11152_ System corrupted: Energy discharge (-31). 11152_ Penetrated by Slug. 11157_ Plasma Rifle destroyed. 11157_ Hvy. Missile Launcher destroyed. 11159_ Penetrated by Slug. 11159_ Slug penetrates Wall. 11160_ Dropped Med. Storage Unit. 11160_ Dropped Fusion Reactor. 11162_ Dropped Lrg. Storage Unit. 11162_ Dropped Imp. Deuterium Engine. 11163_ Dropped Cld. Plasma Cannon. 11163_ Acquired 6 matter. 11168_ Dropped Thermic Laser. 11174_ System corrupted: Component data lost. 11192_ EXIT=FOUND: FACTORY Map ----- +----------------------------------------------------+ | ??????????????????????????????? | | ??????????????????????????????? | | ??????????????????????????????? | | ??????????????????????????????? | | ??????????????????????????????? | | ??????????????????????????????? | | ??????????????????????????????? | | ??????????????????????????????? | | ??????????????????????????????? | | ??????????????????????????????? | | ??????????????????????????????? | | ???????????????????????? ?????? | | ???????????????????????? ?????? | | ???????????????????????? ##???? | | ??????????????????????## ##???? | | ??????????????????????## ##???? | | ??????????????????????## ##???? | | ??????????????????????## ##???? | | ??????????????????????## ##???? | | ??????????????????????##g##???? | | ??????????????????###### #####? | | ??????????????????######g#####? | | #################### "" "" ### | | #################### " " ### | | g g [ !# | | g @ > # | | |# | | [ ### | | R / ! # | | ####+############### = < # | | #### ############### # | | ##???????????####" "#### | | #######???????????####" "#### | | #######?????????????##"""""##?? | | ##??????????????????#########?? | | ????????????????????#########?? | | ??????????????????????????????? | | | | | | | | | | | | | | | | | | | | | | | | | | | +----------------------------------------------------+ Best States ------------- Heat Dissipation 83 Energy Generation 23 Energy Capacity 295 Matter Stores 300 Matter Capacity 300 Sight Range 16 Terrain Scan Density 10 Armor Coverage 600 Weapon Shielding 33 Evasion (%) 71 Targeting Accuracy 8 Target Analysis 5 Core Analysis 6 Armor Integrity Analysis 30 Recoil Reduction 3 Offensive Hacking 22 Defensive Hacking 20 Item Schematics ----------------- Hacking Suite | -7/Factory | Scanalyzed Combat Drone Bay | -6/Data Miner | Free Lgt. Regenerative Plating | -6/Data Miner | Free Cld. Gravmag System | -6/Data Miner | Free Imp. Thermal Defense Suite | -6/Data Miner | Free Thunder Hammer | -6/Data Miner | Free Centrium Wheel | -6/Data Miner | Free Adv. Transmission Jammer | -6/Data Miner | Free Dispersion Rifle | -6/Data Miner | Free Nanoactuators | -6/Data Miner | Free Cld. Cesium-ion Thruster | -5/Factory | Hacked Adv. Hacking Suite | -5/Factory | Hacked Imp. Reaction Control System | -5/Factory | Hacked Phase Gun | -5/Extension | Hacked Robot Schematics ------------------ G-50 Soldier | -6/Data Miner | Free H-66 Slayer | -6/Data Miner | Free B-48 Gladiator | -6/Data Miner | Free A-15 Conveyor | -6/Data Miner | Free Fabricated ------------ Hacking Suite | x1 | -7/Factory Cld. Cesium-ion Thruster | x1 | -5/Factory Alien Tech Used ----------------- None Achievements -------------- None Challenges ------------ None Game ------ Seed DefenseArcConstruct Manual? 0 Play Time 01:48:54 Cumulative 108.1 hours Start 2024.04.08 @ 00:28:04 End 2024.04.08 @ 02:57:05 Sessions 3 Manual Loads 0 Difficulty Rogue Special Mode None Game No. 57 Rogue 19 Adventurer 16 Explorer 22 Win Type - Total 19 Types 14/4/0/0/0/0/0/1/0 Lore% 67 Gallery% 72 Achievement% 68 Wizard Run 0 Options --------- Layout 0 ASCII 0 Keyboard 0 Movement Mouse Keybinds 0 Fullscreen 1 Font 24/Terminus Map View 76x50 Zoom Use 0% Tactical HUD 1 Map Filters NONE Filters NONE Steam 1 RUN: 41b446be-48ad-4b48-9197-4d8e805b4f56